fUSD/lending_fUSD_20240525
["ID","MTS","AMOUNT","RATE_DAILY","PERIOD"]
[327902311,1716595753126,-643.85957151,0.00012644,2]
[327902312,1716595753149,-159.63814161,0.00012645,2]
[327902313,1716595753171,-380.70037141,0.00012765,2]
[327902314,1716595753192,-150.0,0.00012799,2]
[327902315,1716595753218,-330.1203,0.000128,2]
[327902316,1716595753239,-1000.0,0.000128,2]
[327902317,1716595753258,-220.69161547,0.000128,2]
[327902412,1716595832753,-407.44106543,0.00012799,2]
[327902413,1716595832765,-236.41850608,0.00012799,2]
[327902414,1716595832775,-494.90149392,0.000128,2]
[327902415,1716595832966,-104.90169061,0.000128,2]
[327902416,1716595832976,-210.5982,0.000128,2]
[327902417,1716595832985,-171.67244773,0.00012898,2]
[327902418,1716595832995,-1760.80952467,0.00012898,2]
[327902419,1716595833022,-446.45853724,0.00012898,2]
[327902440,1716595837919,-1000.30613625,0.00012898,2]
[327902441,1716595838076,-600.22369564,0.00012898,2]
[327902442,1716595838133,-5281.6586062,0.00012898,2]
[327902443,1716595838142,-1609.5726858,0.000129,2]
[327902450,1716595840384,-425.76808722,0.000129,2]
[327902451,1716595842507,-333.81892786,0.000129,2]
[327902460,1716595843202,-2191.8796206,0.000129,2]
[327902462,1716595843214,-54196.73033796,0.000129,2]
[327902465,1716595843230,-744.17817343,0.000129,2]
[327902467,1716595843242,-14292.46081734,0.000129,2]
[327902469,1716595843253,-72989.75016661,0.000129,2]
[327902471,1716595843266,-5815.85887887,0.000129,2]
[327902473,1716595843277,-2186.37961417,0.000129,2]
[327902476,1716595843288,-731.4392052,0.000129,2]
[327902478,1716595843304,-5878.4156058,0.000129,2]
[327902724,1716595846013,-638.3,0.000129,2]
[327902725,1716595846026,-1284.16518319,0.000129,2]
[327902727,1716595846037,-7141.06143486,0.000129,2]
[327902730,1716595846049,-314.42387288,0.000129,2]
[327902750,1716595846245,-368.59000005,0.000129,2]
[327902809,1716595908646,539.57548686,0.00012998,7]
[327902814,1716595992866,1296.9,0.00031,120]
[327902815,1716596009740,1296.89,0.00031,120]
[327902817,1716596771422,157.87,9.648e-05,2]
[327902884,1716597032057,-643.85957151,0.00010551,2]
[327902886,1716597032067,-162.76290291,0.00010552,2]
[327902887,1716597032078,-282.06887089,0.00010553,2]
[327902888,1716597032088,-716.8117628,0.0001056,2]
[327902889,1716597032097,-200.0,0.00011298,2]
[327902890,1716597032108,-136.98117228,0.00011309,2]
[327902891,1716597032119,-13.01882772,0.00011309,2]
[327902892,1716597032129,-288.88758944,0.0001131,2]
[327902893,1716597032140,-2537.80431815,0.0001131,2]
[327902894,1716597032152,-1042.18809241,0.0001131,2]
[327902895,1716597032163,-200.0,0.0001153,2]
[327902896,1716597032172,-250.0,0.00011564,2]
[327902897,1716597032181,-1500.0,0.00011566,2]
[327902898,1716597032191,-23692.1,0.00011566,2]
[327902899,1716597032200,-159.18,0.00011611,2]
[327902900,1716597032210,-3752.11,0.00011653,2]
[327902901,1716597032220,-151.36,0.00011662,2]
[327902902,1716597032229,-499.99,0.00011662,2]
[327902903,1716597032239,-428.07,0.00011663,2]
[327902904,1716597032248,-159.18,0.00011672,2]
[327902905,1716597032256,-446.46,0.00011688,2]
[327902906,1716597032265,-250.0,0.00011693,2]
[327902907,1716597032275,-159.18,0.00011732,2]
[327902908,1716597032284,-1000.0,0.00011766,2]
[327902909,1716597032293,-159.18,0.00011793,2]
[327902910,1716597032302,-159.18,0.00011853,2]
[327902911,1716597032311,-159.18,0.00011914,2]
[327902912,1716597032321,-159.18,0.00011974,2]
[327902913,1716597032330,-159.18,0.00012035,2]
[327902914,1716597032339,-159.18,0.00012095,2]
[327902915,1716597032348,-159.18,0.00012156,2]
[327902916,1716597032358,-159.18,0.00012216,2]
[327902917,1716597032367,-1295.22351576,0.00012348,2]
[327902918,1716597032376,-173.08,0.00012498,2]
[327902920,1716597032385,-172.86,0.00012579,2]
[327902921,1716597032394,-154.87,0.00012628,2]
[327902922,1716597032404,-154.87,0.00012632,2]
[327902923,1716597032413,-154.87,0.00012636,2]
[327902924,1716597032422,-154.87,0.00012641,2]
[327902925,1716597032430,-154.87,0.00012645,2]
[327902926,1716597032439,-154.87,0.00012649,2]
[327902928,1716597032449,-154.87,0.00012653,2]
[327902930,1716597032458,-154.87,0.00012657,2]
[327902931,1716597032467,-154.87,0.00012662,2]
[327902933,1716597032476,-154.87,0.00012666,2]
[327902934,1716597032485,-154.87,0.0001267,2]
[327902935,1716597032494,-154.87,0.00012674,2]
[327902936,1716597032502,-154.87,0.00012679,2]
[327902937,1716597032511,-154.87,0.00012683,2]
[327902938,1716597032520,-154.87,0.00012687,2]
[327902939,1716597032530,-154.87,0.00012691,2]
[327902940,1716597032539,-2670.83781,0.0001277,2]
[327902941,1716597032553,-218408.48017421,0.000128,2]
[327902942,1716597032565,-1072.30568664,0.000128,2]
[327902943,1716597032577,-1405.66129349,0.000128,2]
[327902944,1716597032590,-5450.15237545,0.000128,2]
[327902945,1716597032601,-912.27462891,0.000128,2]
[327902946,1716597032614,-787.72537109,0.000128,2]
[327902947,1716597032628,-1691.5746584,0.000128,2]
[327902948,1716597032640,-60332.00031181,0.000128,2]
[327902949,1716597032649,-380.70037141,0.00012847,2]
[327902950,1716597032659,-291.72170293,0.00012898,2]
[327902951,1716597032668,-632.54544837,0.00012899,2]
[327902952,1716597032677,-258.36384245,0.000129,2]
[327902953,1716597032686,-258.36384242,0.000129,2]
[327902954,1716597032695,-30.61638061,0.000129,2]
[327902955,1716597032706,-227.74746181,0.000129,2]
[327902956,1716597032716,-258.36384242,0.000129,2]
[327902957,1716597032725,-356.63021126,0.00012903,2]
[327902958,1716597032734,-201.28727559,0.00012903,2]
[327902959,1716597032743,-170.60058418,0.00012903,2]
[327902960,1716597032752,-258.36384242,0.00012935,2]
[327902961,1716597032762,-73.09916271,0.00012937,2]
[327902962,1716597032773,-448.43264082,0.00012937,2]
[327902963,1716597032782,-172.68941544,0.00012937,2]
[327902964,1716597032792,-157.87,0.00012957,2]
[327902965,1716597032801,-258.36384242,0.00012969,2]
[327902966,1716597032810,-162.43358455,0.00012981,2]
[327902967,1716597032819,-3534.24904084,0.00012981,2]
[327902968,1716597032828,-317.10726892,0.00012998,2]
[327902969,1716597032838,-155.0,0.00012998,2]
[327902970,1716597032847,-500.22706732,0.00012998,2]
[327902971,1716597032858,-1425.0735,0.00012998,2]
[327902972,1716597032866,-364.27737293,0.00012998,2]
[327902973,1716597032875,-155.0,0.00012998,2]
[327902974,1716597032884,-1370.1766084,0.00012998,2]
[327902975,1716597032895,-155.0,0.00012998,2]
[327902976,1716597032905,-245.21322238,0.00012998,2]
[327902977,1716597032915,-192.78062464,0.00012999,2]
[327902978,1716597032924,-150.0,0.00012999,2]
[327902979,1716597032933,-11778.5477236,0.00013,2]
[327902980,1716597032945,-1641.7,0.00013,2]
[327902981,1716597032958,-308.775,0.00013,2]
[327902984,1716597038127,-520.089,0.00013,2]
[327902985,1716597038139,-389.719119,0.00013,2]
[327902986,1716597038151,-1812.133905,0.00013,2]
[327902987,1716597038163,-292.39394109,0.00013,2]
[327902988,1716597038174,-534.67786524,0.00013,2]
[327902989,1716597038186,-727.3743122,0.00013,2]
[327902990,1716597038248,-21915.83578241,0.00013,2]
[327902991,1716597038261,-13542.78771253,0.00013,2]
[327902992,1716597038273,-3703.81801209,0.00013,2]
[327902993,1716597038314,-77913.50786726,0.00013,2]
[327902994,1716597038326,-384.2290936,0.00013,2]
[327902995,1716597038433,-8668.30132127,0.00013,2]
[327902996,1716597038445,-2719.79495747,0.00013,2]
[327902997,1716597038457,-8574.58982,0.00013,2]
[327902998,1716597038468,-3068.61144,0.00013,2]
[327902999,1716597038493,-302.5936972,0.00013,2]
[327903000,1716597038505,-335.39622056,0.00013,2]
[327903014,1716597040578,-293.7,0.00013,2]
[327903015,1716597040591,-11120.51956124,0.00013,2]
[327903016,1716597040603,-9102.7803848,0.00013,2]
[327903017,1716597040616,-50300.0,0.00013,2]
[327903019,1716597040630,-251490.86404924,0.00013,2]
[327903020,1716597040648,-9581.10293057,0.00013,2]
[327903021,1716597040703,-7976.82680112,0.00013,2]
[327903022,1716597040765,-270554.1836631,0.00013,2]
[327903023,1716597040777,-338.79383807,0.00013,2]
[327903024,1716597040788,-1149.42897912,0.00013,2]
[327903025,1716597040825,-1179.86580013,0.00013,2]
[327903026,1716597040838,-489.59093316,0.00013,2]
[327903027,1716597040850,-583.612171,0.00013,2]
[327903028,1716597040863,-627.57,0.00013,2]
[327903029,1716597040887,-454.18508886,0.00013,2]
[327903030,1716597041406,-503.85224682,0.00012999,2]
[327903031,1716597041416,-911115.86607529,0.00013,2]
[327903047,1716597043351,-1868.51527214,0.00013,2]
[327903048,1716597043365,-5257.01734158,0.00013,2]
[327903049,1716597043377,-6150.67234787,0.00013,2]
[327903050,1716597043389,-3823.28356198,0.00013,2]
[327903051,1716597043474,-92.83153723,0.00013,2]
[327903052,1716597043883,-793406.80404666,0.00013,2]
[327903055,1716597046222,-36728.04919,0.00013,2]
[327903056,1716597046286,-386.34527195,0.00013,2]
[327903057,1716597046408,-6509.23804401,0.00013,2]
[327903058,1716597046530,-30026.94364131,0.00013,2]
[327903059,1716597046541,-253.94151929,0.00013,2]
[327903060,1716597046557,-363.49361046,0.00013,2]
[327903065,1716597290473,-643.85957151,0.00012699,2]
[327903066,1716597290496,-1000.0,0.000127,2]
[327903067,1716597290517,-1565.2946698,0.00012858,2]
[327903068,1716597301418,-170.60058418,0.000129,2]
[327903069,1716597301440,-262.5495327,0.000129,2]
[327903070,1716597301463,-160.84571028,0.000129,2]
[327903071,1716597301485,-237.75347416,0.000129,2]
[327903072,1716597301509,-64704.09645737,0.000129,2]
[327903085,1716598151108,-643.85957151,0.00010999,2]
[327903086,1716598151133,-1523.0,0.00011,2]
[327903087,1716598151157,-158.04,0.00011049,2]
[327903088,1716598151181,-282.1196435,0.00011568,2]
[327903109,1716598161614,773.758858,2e-07,2]
[327903113,1716598199705,158.04,9.697e-05,2]
[327903143,1716598232298,-282.87255749,0.00011568,2]
[327903145,1716598232308,-622.09276668,0.00011589,2]
[327903147,1716598232321,-357.46371413,0.00011589,2]
[327903149,1716598232334,-2291.08562381,0.00011589,2]
[327903150,1716598232346,-541.94789538,0.00011589,2]
[327903151,1716598232355,-250.0,0.00011591,2]
[327903152,1716598232364,-357.69,0.00011594,2]
[327903153,1716598232374,-250.0,0.00011598,2]
[327903154,1716598232383,-244.31,0.00011598,2]
[327903155,1716598232392,-702.77,0.00011606,2]
[327903156,1716598232401,-657.97,0.00011619,2]
[327903157,1716598232410,-200.0,0.0001162,2]
[327903158,1716598232420,-643.85957151,0.00012347,2]
[327903159,1716598232429,-1298.39020343,0.00012348,2]
[327903160,1716598232438,-389.59,0.00012501,2]
[327903161,1716598232448,-151.89,0.00012501,2]
[327903162,1716598232457,-1084.26,0.00012505,2]
[327903163,1716598232466,-389.59,0.00012505,2]
[327903164,1716598232475,-389.59,0.00012508,2]
[327903165,1716598232484,-499.99,0.00012508,2]
[327903166,1716598232493,-389.59,0.00012511,2]
[327903167,1716598232503,-389.59,0.00012514,2]
[327903168,1716598232512,-389.59,0.00012518,2]
[327903169,1716598232521,-174.04953822,0.00012521,2]
[327903170,1716598232533,-215.54046178,0.00012521,2]
[327903171,1716598232542,-389.59,0.00012524,2]
[327903172,1716598232551,-389.59,0.00012528,2]
[327903173,1716598232560,-389.59,0.00012531,2]
[327903174,1716598232570,-389.59,0.00012534,2]
[327903175,1716598232579,-389.59,0.00012537,2]
[327903176,1716598232589,-389.59,0.00012541,2]
[327903177,1716598232598,-389.59,0.00012544,2]
[327903178,1716598232608,-389.59,0.00012547,2]
[327903179,1716598232617,-389.59,0.00012551,2]
[327903180,1716598232626,-389.59,0.00012554,2]
[327903181,1716598232635,-389.59,0.00012557,2]
[327903182,1716598232644,-389.59,0.0001256,2]
[327903183,1716598232654,-389.59,0.00012564,2]
[327903184,1716598232664,-199.05748002,0.00012642,2]
[327903187,1716598232757,-45.35306683,0.00012642,2]
[327903188,1716598232767,-1336.59883874,0.00012722,2]
[327903189,1716598232788,-230.12435387,0.00012722,2]
[327903190,1716598232797,-167.52,0.00012755,2]
[327903191,1716598232806,-158.04,0.00012769,2]
[327903192,1716598232815,-464.3516571,0.00012844,2]
[327903193,1716598232825,-2432.45248,0.0001287,2]
[327903194,1716598232834,-197.22063755,0.00012889,2]
[327903195,1716598232845,-1425.80189734,0.00012889,2]
[327903196,1716598232854,-305.33724606,0.00012898,2]
[327903197,1716598232864,-6660.35949457,0.000129,2]
[327903198,1716598232875,-926.63318635,0.000129,2]
[327903199,1716598232885,-827.62713501,0.000129,2]
[327903200,1716598232896,-164684.7958408,0.000129,2]
[327903201,1716598232907,-854.70609405,0.000129,2]
[327903202,1716598232924,-2197.83270384,0.000129,2]
[327903203,1716598232934,-331.5,0.000129,2]
[327903204,1716598232945,-681.39069848,0.000129,2]
[327903205,1716598232957,-1666.21666469,0.000129,2]
[327903206,1716598232968,-741.8811006,0.000129,2]
[327903207,1716598232980,-2400.0,0.000129,2]
[327903208,1716598232992,-2456.09841182,0.000129,2]
[327903209,1716598233003,-2373.05450546,0.000129,2]
[327903210,1716598233015,-1966.22875406,0.000129,2]
[327903211,1716598233027,-6438.08321885,0.000129,2]
[327903212,1716598233039,-854.16488114,0.000129,2]
[327903213,1716598233050,-464.47486671,0.000129,2]
[327903214,1716598233061,-1132.38722525,0.000129,2]
[327903215,1716598233072,-1393.58492463,0.000129,2]
[327903216,1716598233084,-2250.40976915,0.000129,2]
[327903217,1716598233095,-376.2556118,0.000129,2]
[327903218,1716598233106,-2335.98145631,0.000129,2]
[327903219,1716598233116,-925.04343273,0.000129,2]
[327903220,1716598233128,-5902.51031461,0.000129,2]
[327903221,1716598233139,-4830.43984845,0.000129,2]
[327903222,1716598233150,-6018.32790803,0.000129,2]
[327903223,1716598233161,-308.68743525,0.000129,2]
[327903224,1716598233172,-230054.65885999,0.000129,2]
[327903225,1716598233182,-34867.75566935,0.000129,2]
[327903226,1716598233191,-156.06094658,0.000129,2]
[327903227,1716598233201,-343.60151026,0.000129,2]
[327903228,1716598233210,-3830.36693425,0.000129,2]
[327903229,1716598233219,-158.50231612,0.000129,2]
[327903230,1716598233229,-2185.6722776,0.00012989,2]
[327903231,1716598233238,-36224.8772064,0.00012989,2]
[327903232,1716598233247,-1732.3220647,0.00012989,2]
[327903233,1716598233256,-9863.2062639,0.00012989,2]
[327903234,1716598233266,-3567.8008104,0.00012989,2]
[327903235,1716598233275,-215.0593734,0.0001299,2]
[327903236,1716598233284,-155.65252056,0.00012998,2]
[327903237,1716598233294,-410.27026242,0.00012998,2]
[327903238,1716598233304,-260.19458091,0.00012999,2]
[327903239,1716598233315,-426.75743422,0.00012999,2]
[327903240,1716598233324,-1119.51800364,0.00012999,2]
[327903241,1716598233334,-811298.52464259,0.00013,2]
[327903242,1716598233346,-31420.96678108,0.00013,2]
[327903243,1716598233358,-32616.35960943,0.00013,2]
[327903244,1716598233369,-50044.26308057,0.00013,2]
[327903245,1716598233380,-3064.60664569,0.00013,2]
[327903246,1716598233392,-704.92261432,0.00013,2]
[327903250,1716598238241,-396.31,0.00011712,2]
[327903253,1716598238251,-1.97391112,0.00013,2]
[327903260,1716598238335,-2335331.92571665,0.00013,2]
[327903261,1716598238347,-1023268.83267899,0.00013,2]
[327903262,1716598238430,-274.15648893,0.00012999,2]
[327903263,1716598238441,-845.36151471,0.00012999,2]
[327903264,1716598238450,-608.49470295,0.00013,2]
[327903265,1716598238524,-18438.86976096,0.00013,2]
[327903266,1716598238535,-4290.864085,0.00013,2]
[327903267,1716598238546,-1145.08013776,0.00013,2]
[327903281,1716598241756,-340.53893335,0.000129,2]
[327903282,1716598241766,-496.19479996,0.00013,2]
[327903288,1716598243730,-328.30888772,0.000128,2]
[327903289,1716598243740,-330.48091855,0.00013,2]
[327903290,1716598243909,-10000.0,0.00013,2]
[327903291,1716598243929,-1376.18983,0.00013,2]
[327903328,1716599431597,-523.82451147,0.00010411,2]
[327903329,1716599431606,-164.18535777,0.00010411,2]
[327903330,1716599431618,-1051.24374465,0.00010411,2]
[327903331,1716599431627,-205.03192926,0.00010412,2]
[327903332,1716599431636,-157.8588803,0.00010413,2]
[327903333,1716599431646,-5278.29883426,0.00010414,2]
[327903334,1716599431655,-6996.79989112,0.00010414,2]
[327903335,1716599431738,-5314.0001,0.00010414,2]
[327903336,1716599431749,-23081.21719919,0.00010414,2]
[327903337,1716599431759,-1064.69028387,0.00010415,2]
[327903338,1716599431768,-643.85957151,0.00010415,2]
[327903339,1716599431778,-204.79847016,0.00010417,2]
[327903340,1716599431787,-155.0,0.00010417,2]
[327903341,1716599431796,-158.04,0.00010419,2]
[327903342,1716599431805,-1000.0,0.00012265,2]
[327903343,1716599431815,-250.0,0.00012438,2]
[327903344,1716599431824,-182.04,0.00012496,2]
[327903345,1716599431833,-128.64697119,0.0001251,2]
[327903346,1716599431882,-41.44302881,0.0001251,2]
[327903347,1716599431892,-250.0,0.00012725,2]
[327903348,1716599431901,-1051.40360266,0.00012778,2]
[327903349,1716599431912,-1901.72340631,0.00012778,2]
[327903350,1716599431923,-7992.47274216,0.00012778,2]
[327903352,1716599431932,-23.18937442,0.00012779,2]
[327903355,1716599437602,-204.79847016,0.0001041,2]
[327903356,1716599437612,-2924.64062558,0.00012779,2]
[327903357,1716599437622,-1649.55934118,0.00012797,2]
[327903358,1716599437634,-2020.4562,0.000128,2]
[327903359,1716599437644,-1460.72028141,0.00012889,2]
[327903360,1716599437654,-500.0,0.00012896,2]
[327903361,1716599437664,-403.91818942,0.00012898,2]
[327903362,1716599437673,-2983.2477,0.000129,2]
[327903363,1716599437683,-32185.47642735,0.000129,2]
[327903364,1716599437693,-297.97156669,0.000129,2]
[327903365,1716599437703,-2553.57795618,0.000129,2]
[327903366,1716599437712,-3578.90368179,0.00012986,2]
[327903367,1716599437722,-35413.0487014,0.00012989,2]
[327903368,1716599437731,-1660.2600475,0.00012989,2]
[327903369,1716599437741,-9499.1130498,0.00012989,2]
[327903370,1716599437750,-2007.1118068,0.00012989,2]
[327903371,1716599437760,-3276.3261009,0.00012989,2]
[327903372,1716599437779,-234.29329078,0.00012998,2]
[327903373,1716599437789,-3089.44753044,0.00012998,2]
[327903374,1716599437799,-4000.0,0.00012998,2]
[327903375,1716599437809,-536.71822129,0.00012998,2]
[327903376,1716599437819,-207.78565218,0.00012998,2]
[327903377,1716599437829,-790.00185035,0.00012998,2]
[327903378,1716599437838,-238.87373064,0.00012998,2]
[327903379,1716599437848,-238.80480051,0.00012998,2]
[327903380,1716599437859,-176.04682837,0.00012998,2]
[327903381,1716599437868,-235.95016862,0.00012998,2]
[327903382,1716599437878,-155.0,0.00012998,2]
[327903383,1716599437888,-710.94730096,0.00012998,2]
[327903384,1716599437898,-1247.47877474,0.00012998,2]
[327903385,1716599437907,-2223.04939775,0.00012998,2]
[327903386,1716599437917,-373.97275012,0.00012998,2]
[327903387,1716599437927,-274.09626842,0.00012998,2]
[327903388,1716599437936,-155.0,0.00012998,2]
[327903389,1716599437946,-162.56418292,0.00012998,2]
[327903390,1716599437957,-936.8170768,0.00012998,2]
[327903391,1716599437966,-263.06023858,0.00012998,2]
[327903392,1716599437976,-364.18725345,0.00012998,2]
[327903393,1716599437985,-158.64440687,0.00012998,2]
[327903395,1716599437995,-159.03909377,0.00012998,2]
[327903397,1716599438006,-155.0,0.00012998,2]
[327903399,1716599438016,-175.47369555,0.00012998,2]
[327903401,1716599438025,-201.71057382,0.00012998,2]
[327903403,1716599438035,-179.49292044,0.00012998,2]
[327903405,1716599438044,-155.33461273,0.00012998,2]
[327903407,1716599438054,-285.0393004,0.00012998,2]
[327903409,1716599438064,-1306.62286596,0.00012998,2]
[327903411,1716599438074,-392.43718635,0.00012998,2]
[327903413,1716599438085,-185.61484288,0.00012998,2]
[327903414,1716599438095,-1000.0,0.00012998,2]
[327903415,1716599438104,-1000.0,0.00012998,2]
[327903416,1716599438114,-1000.0,0.00012998,2]
[327903417,1716599438124,-1000.0,0.00012998,2]
[327903418,1716599438134,-1000.0,0.00012998,2]
[327903419,1716599438144,-1000.0,0.00012998,2]
[327903420,1716599438154,-1000.0,0.00012998,2]
[327903421,1716599438164,-1000.0,0.00012998,2]
[327903423,1716599438173,-1000.0,0.00012998,2]
[327903425,1716599438182,-1000.0,0.00012998,2]
[327903426,1716599438192,-1000.0,0.00012998,2]
[327903428,1716599438202,-1000.0,0.00012998,2]
[327903429,1716599438211,-1000.0,0.00012998,2]
[327903430,1716599438224,-1000.0,0.00012998,2]
[327903431,1716599438234,-1000.0,0.00012998,2]
[327903432,1716599438243,-1000.0,0.00012998,2]
[327903433,1716599438253,-1000.0,0.00012998,2]
[327903434,1716599438263,-1000.0,0.00012998,2]
[327903435,1716599438273,-1000.0,0.00012998,2]
[327903436,1716599438282,-1000.0,0.00012998,2]
[327903437,1716599438292,-1000.0,0.00012998,2]
[327903438,1716599438301,-287.0,0.00012998,2]
[327903439,1716599438311,-1000.0,0.00012998,2]
[327903440,1716599438321,-202.0,0.00012998,2]
[327903441,1716599438331,-839.63850273,0.00012999,2]
[327903442,1716599438341,-9974.61224222,0.00012999,2]
[327903443,1716599438350,-3009.71100463,0.00012999,2]
[327903444,1716599438360,-2178138.50320488,0.00013,2]
[327903445,1716599438373,-1023268.83267899,0.00013,2]
[327903446,1716599438385,-4301.317335,0.00013,2]
[327903447,1716599438396,-1663.1633228,0.00013,2]
[327903448,1716599438407,-1007.07122836,0.00013,2]
[327903460,1716599441048,-696.82102048,0.00013,2]
[327903462,1716599442826,-864.65094575,0.00013,2]
[327903466,1716599443233,-1738.33136,0.00013,2]
[327903471,1716599443280,-0.00549237,0.00013,2]
[327903481,1716599446021,-661.28345667,0.00012999,2]
[327903482,1716599446032,-495.44768508,0.00012999,2]
[327903483,1716599446083,-134.28119197,0.00012999,2]
[327903484,1716599446093,-257.76330137,0.00012999,2]
[327903485,1716599446104,-16.35013665,0.00012999,2]
[327903486,1716599446114,-360.26392569,0.00013,2]
[327903487,1716599875117,302.0,0.00031,120]
[327903488,1716599892085,156.81,9.856e-05,2]
[327903491,1716599919871,116278.89643982,9.856e-05,2]
[327903492,1716599974648,155.0,9.856e-05,2]
[327903493,1716599998649,155.0,9.856e-05,2]
[327903494,1716600419449,323.62975825,7.392e-05,2]
[327903496,1716600441337,156.81,9.483e-05,2]
[327903503,1716600553114,-1273.64909897,0.00011393,2]
[327903504,1716600553140,-162.76290291,0.00011393,2]
[327903505,1716600553165,-327.02252959,0.00011393,2]
[327903506,1716600553192,-237.48860909,0.00011394,2]
[327903507,1716600553217,-155.0,0.00011394,2]
[327903508,1716600553242,-178.05882516,0.00011394,2]
[327903520,1716600631952,-322.02254067,0.00011387,2]
[327903521,1716600631962,-155.0,0.00011387,2]
[327903522,1716600631970,-2224.2558316,0.00011387,2]
[327903523,1716600631984,-643.9738315,0.00011388,2]
[327903524,1716600631993,-1108.28932507,0.00011388,2]
[327903525,1716600632007,-1262.010745,0.00011388,2]
[327903526,1716600632126,-597.34227907,0.00011388,2]
[327903527,1716600632298,-1633.92424943,0.00011388,2]
[327903528,1716600632308,-2378.80379285,0.00011389,2]
[327903529,1716600632322,-580.86539022,0.00011389,2]
[327903530,1716600632334,-51.07498295,0.00011389,2]
[327903531,1716600632344,-155.0,0.00011389,2]
[327903532,1716600632354,-150.0,0.00011389,2]
[327903533,1716600632365,-686.78764601,0.0001139,2]
[327903534,1716600632374,-10532.81154716,0.0001139,2]
[327903535,1716600632384,-1137.05853223,0.00011394,2]
[327903536,1716600632393,-3233.4,0.00011402,2]
[327903537,1716600632402,-406.33881685,0.00011406,2]
[327903538,1716600632413,-732.58428015,0.00011419,2]
[327903539,1716600632425,-267.41571985,0.00011419,2]
[327903540,1716600632434,-250.0,0.00011425,2]
[327903541,1716600632444,-250.0,0.00011433,2]
[327903542,1716600632456,-499.99,0.00011433,2]
[327903545,1716600632465,-1064.9240697,0.00011433,2]
[327903549,1716600632476,-713.07366266,0.00011433,2]
[327903553,1716600632491,-893.59727248,0.00011433,2]
[327903558,1716600632502,-1694.07499516,0.00011433,2]
[327903562,1716600632511,-90.13440124,0.00011459,2]
[327903566,1716600632534,-63.04559876,0.00011459,2]
[327903569,1716600632543,-167.67,0.00011474,2]
[327903572,1716600632552,-926.89712685,0.00011474,2]
[327903575,1716600632564,-736.28287315,0.00011474,2]
[327903577,1716600632573,-1707.98421261,0.00011516,2]
[327903579,1716600632584,-3365.49578739,0.00011516,2]
[327903580,1716600632593,-153.18,0.00011609,2]
[327903581,1716600632603,-153.18,0.00011758,2]
[327903582,1716600632612,-156.81,0.00011873,2]
[327903583,1716600632621,-1000.0,0.00011894,2]
[327903584,1716600632631,-832.01,0.00011895,2]
[327903585,1716600632640,-153.18,0.00011907,2]
[327903586,1716600632651,-167.52,0.00011927,2]
[327903587,1716600632661,-63.34747293,0.00011961,2]
[327903588,1716600632672,-113.23252707,0.00011961,2]
[327903589,1716600632682,-696.50081047,0.00012,2]
[327903598,1716600638094,-325.15285647,0.00011386,2]
[327903599,1716600638105,-303.49918953,0.00012,2]
[327903600,1716600638116,-153.18,0.00012057,2]
[327903601,1716600638126,-10945.59975113,0.000124,2]
[327903602,1716600638139,-972.35078202,0.00012446,2]
[327903603,1716600638148,-173.08,0.00012553,2]
[327903604,1716600638158,-1581.03970624,0.00012717,2]
[327903605,1716600638168,-1000.0,0.00012847,2]
[327903606,1716600638177,-169.53,0.00012852,2]
[327903607,1716600638187,-600.93922862,0.00012866,2]
[327903608,1716600638196,-3328.48624328,0.00012867,2]
[327903609,1716600638206,-775.62279347,0.00012867,2]
[327903610,1716600638215,-1207.20614757,0.00012868,2]
[327903611,1716600638225,-349.4849731,0.00012869,2]
[327903612,1716600638234,-2846.1212,0.0001287,2]
[327903613,1716600638244,-2983.2477,0.00012885,2]
[327903614,1716600638253,-200.0,0.00012895,2]
[327903615,1716600638262,-500.0,0.00012895,2]
[327903616,1716600638272,-200.0,0.00012896,2]
[327903617,1716600638281,-500.0,0.00012896,2]
[327903618,1716600638290,-500.0,0.00012896,2]